Cogmind - Beta 13 @@@ ROGUE MODE // 2024.05.27 @ 17:55:53 Player: JTMusky Result: Destroyed by G-34 Mercenary with Small Laser Performance ------------- Evolutions (0) 0 Regions Visited (1) 200 Robots Destroyed (19) 95 Value Destroyed (358) 358 Prototype IDs (2) 40 Alien Tech Used (0) 0 Bonus (0) 0 TOTAL SCORE: 693 Bonus ------- None Cogmind --------- Core Integrity 0/250 Matter 290/300 Energy 115/125 System Corruption 1% Temperature Cool (64) Movement Walking (120) Location -10/Materials Parts ------- > --- POWER (1) -------- Light Ion Engine > --- PROPULSION (2) --- Aluminum Leg Aluminum Leg > --- UTILITY (2) ------ (None) > --- WEAPON (2) ------- Medium Laser > --- INVENTORY (5) ---- Small Storage Unit ECM Suite Peak State ------------ > --- POWER ------------ Ion Engine > --- PROPULSION ------- Light Treads Light Treads > --- UTILITY ---------- Improved Terrain Scanner Seismic Detector > --- WEAPON ----------- Assault Rifle Assault Rifle > --- INVENTORY -------- Aluminum Leg Aluminum Leg Wheel Small Storage Unit Medium Laser [Rating: 9] Favorites ----------- Power Ion Engine Engine Ion Engine Propulsion Light Treads Treads Light Treads Leg Aluminum Leg Utility Improved Terrain Scanner Device Improved Terrain Scanner Weapon Assault Rifle Energy Gun Medium Laser Ballistic Gun Assault Rifle Build | -11 -10 ------- Run | Yrd Mat Slots Evolved . | . . Power . | . . Propulsion . | . . Utility . | . . Weapon . | . . Parts Attached 16 | 7 9 Power 2 | 1 1 Engine 2 | 1 1 Core . | . . Reactor . | . . Propulsion 4 | 2 2 Treads 2 | 2 . Leg 2 | . 2 Wheel . | . . Hover . | . . Flight . | . . Utility 3 | 2 1 Device 3 | 2 1 Storage . | . . Processor . | . . Hackware . | . . Protection . | . . Artifact . | . . Weapon 7 | 2 5 Energy Gun 4 | . 4 Energy Cannon . | . . Ballistic Gun 3 | 2 1 Ballistic Cannon . | . . Launcher . | . . Special Weapon . | . . Impact Weapon . | . . Slashing Weapon . | . . Piercing Weapon . | . . Special Melee Weapon . | . . Unidentified Prototypes . | . . Parts Lost 7 | . 7 Power 1 | . 1 Propulsion 2 | . 2 Utility 2 | . 2 Weapon 2 | . 2 Highest Loss Streak 6 | . 6 To Critical Strikes . | . . Average Slot Usage (%) 93 | . 93 Engine 12 | . 12 Treads 25 | . 25 Leg 1 | . 1 Device 25 | . 25 Energy Gun 11 | . 11 Ballistic Gun 15 | . 15 Naked Turns . | . . Heaviest Build 11 | 11 11 Greatest Support 40 | 40 40 Greatest Overweight (x) 1 | 1 . Average Overweight (x) . | . . Largest Inventory Capacity 5 | 5 5 Average Capacity 5 | 5 5 Most Carried 5 | 5 5 Average Carried 4 | 3 4 Final Capacity 5 | 5 5 Final Carried 5 | 5 2 Class Distribution -------------------- 100% | Mutant Dominant Class ---------------- Mutant | -10/Materials Resources | -11 -10 ----------- Run | Yrd Mat Matter Collected 614 | 307 307 Remotely . | . . Salvage Created 740 | 136 604 Parts 46 | 16 30 Haulers Intercepted 2 | . 2 Recyclers Shooed 3 | . 3 Parts Field Recycled . | . . Retrieved Matter . | . . Parts Self-Destructed . | . . Prevented . | . . Kills | -11 -10 ------- Run | Yrd Mat Combat Hostiles Destroyed 8 | . 8 Guns 8 | . 8 Classes Destroyed 7 | 3 4 Worker 2 | 1 1 Builder 1 | . 1 Tunneler 3 | 3 . Hauler 2 | . 2 Recycler 2 | 1 1 Operator 1 | . 1 Grunt 8 | . 8 Best Kill Streak 3 | 3 3 Combat Bots Only 3 | . 3 Max Kills in Single Turn 2 | 2 1 Gunslinging . | . . Exploded . | . . Melee . | . . Uniques/NPCs Destroyed . | . . Combat | -11 -10 -------- Run | Yrd Mat Hostile Shots Fired 116 | . 116 Missed 35 | . 35 Damage Taken 1025 | . 1025 Core 255 | . 255 Absorbed by Shields . | . . Core Remaining (%) 100 | 100 . Volleys Fired 84 | 12 72 Largest 2 | 2 2 Hottest 100 | 40 100 Shots Fired 147 | 24 123 Gun 147 | 24 123 Cannon . | . . Launcher . | . . Special . | . . Kinetic 94 | 24 70 Thermal 53 | . 53 Explosive . | . . Electromagnetic . | . . Robot Hit Streak 9 | 4 9 Robot Miss Streak 6 | 1 6 Penetration Max . | . . Secondary Targets 2 | . 2 Max Gunslinging Chain 1 | . 1 Shots Hit Robots 85 | 16 69 Core Hits 35 | 6 29 Critical Kills . | . . Critical Parts Destroyed 1 | . 1 Critical Strikes 3 | . 3 Burn 2 | . 2 Destroy 1 | . 1 Melee Attacks . | . . Impact . | . . Slashing . | . . Piercing . | . . Sneak Attacks . | . . Combat Hostiles . | . . Follow-up Attacks . | . . Damage Inflicted 1169 | 234 935 Guns 1167 | 234 933 Cannons . | . . Explosions . | . . Melee . | . . Ramming 2 | . 2 Kinetic 757 | 234 523 Thermal 410 | . 410 Explosive . | . . Electromagnetic . | . . Impact . | . . Slashing . | . . Piercing . | . . Highest Corruption 1 | . 1 Average Corruption 1 | . 1 Corruption Purged . | . . Corruption Blocked . | . . Effects 6 | . 6 Message Errors 1 | . 1 Matter Fused 2 | . 2 Energy Discharges 2 | . 2 Data Loss (major) 1 | . 1 Overload Shots . | . . Overflow Damage . | . . Projectiles . | . . Explosions . | . . Melee . | . . Knockbacks . | . . Impact . | . . Kinetic . | . . Secondary . | . . Self-Inflicted Damage . | . . Shots . | . . Rammed . | . . Targets Rammed 1 | . 1 Kicked 1 | . 1 Crushed . | . . Highest Temperature 373 | . 373 Average Temperature 111 | . 111 Received Heat Transfer 630 | . 630 Effects 5 | . 5 Energy Bleed 4 | . 4 Short Circuit 1 | . 1 Siege Activations . | . . Robots Corrupted . | . . Combat Hostiles . | . . Parts Fried . | . . Impact Corruptions . | . . Robots Melted . | . . Combat Hostiles . | . . Parts Melted 4 | . 4 Heat Transferred 1369 | . 1369 Parts Sabotaged . | . . Parts Stolen . | . . Parts Stripped . | . . Power Chain Reactions . | . . Alert | -11 -10 ------- Run | Yrd Mat Peak Influence 135 | 25 135 Initial 16 | . 16 Average 36 | 10 40 Maximum Alert Level . | . . Low Security (%) 100 | 100 100 Level 1 . | . . Level 2 . | . . Level 3 . | . . Level 4 . | . . Level 5 . | . . High Security . | . . Max Security . | . . Squads Dispatched 2 | . 2 Investigation . | . . Extermination . | . . Reinforcement 2 | . 2 Assault . | . . Garrison . | . . Intercept . | . . Searches Triggered . | . . Construction Impeded . | . . Haulers Reinforced . | . . Active Scanning Responses . | . . Cargo Convoy Interrupts . | . . Stealth | -11 -10 --------- Run | Yrd Mat Distress Signals . | . . Communications Jammed . | . . Distress Signals . | . . Times Spotted 15 | . 15 Peak Tracking Total 4 | . 4 Tactical Retreats . | . . Traps | -11 -10 ------- Run | Yrd Mat Traps Triggered 1 | . 1 Indirectly . | . . Trap Hack Attempts . | . . Triggered . | . . Disarmed . | . . Reprogrammed . | . . Reused . | . . Traps Extracted . | . . Installed . | . . Triggered . | . . Machines | -11 -10 ---------- Run | Yrd Mat Machines Disabled . | . . Max in Single Turn . | . . Machines Repaired . | . . Machines Dismantled . | . . Machines Sabotaged . | . . Overloaded Fab Kills . | . . Hacking | -11 -10 --------- Run | Yrd Mat Machines Accessed 1 | . 1 Terminals 1 | . 1 Fabricators . | . . Repair Stations . | . . Recycling Units . | . . Scanalyzers . | . . Garrison Access . | . . Total Hacks 2 | . 2 Successful 1 | . 1 Failed 1 | . 1 Catastrophic . | . . Database Lockouts . | . . Manual 1 | . 1 Terminals 2 | . 2 Fabricators . | . . Repair Stations . | . . Recycling Units . | . . Scanalyzers . | . . Garrison Access . | . . Terminal Hacks 1 | . 1 Prototype ID Bank 1 | . 1 Fabricator Hacks . | . . Repair Station Hacks . | . . Recycling Unit Hacks . | . . Scanalyzer . | . . Garrison Access Hacks . | . . Unauthorized Hacks . | . . Terminals . | . . Fabricators . | . . Repair Stations . | . . Recycling Units . | . . Scanalyzers . | . . Garrison Access . | . . Data Cores Recovered . | . . Used . | . . Hacking Detections 1 | . 1 Full Trace Events . | . . Feedback Events . | . . Feedback Blocked . | . . Robot Schematics Acquired . | . . Robots Built . | . . Authchips . | . . Time . | . . Total Robot Build Rating . | . . Part Schematics Acquired . | . . Parts Built . | . . Authchips . | . . Time . | . . Total Part Build Rating . | . . Parts Repaired . | . . Time . | . . Parts Recycled . | . . Recycled Matter . | . . Retrieved Matter . | . . Retrieved Components . | . . Parts Scanalyzed . | . . Part Schematics Acquired . | . . Parts Damaged . | . . Bothacking | -11 -10 ------------ Run | Yrd Mat Used RIF Installer . | . . Robots Hacked . | . . Non-combat . | . . Combat . | . . Robot Hacks Applied . | . . Relay Couplers Released . | . . Fabnet Peak Effective % . | . . Robots Rewired . | . . Allies Hacked . | . . Hacks Repelled . | . . Allies | -11 -10 -------- Run | Yrd Mat Total Allies . | . . Largest Group . | . . Highest-Rated Group . | . . Highest-Rated Ally . | . . Total Orders . | . . Ally Attacks . | . . Total Damage . | . . Kills . | . . Allies Corrupted . | . . Allies Melted . | . . Intel | -11 -10 ------- Run | Yrd Mat Robot Analysis Total . | . . Derelict Logs Recovered . | . . Drone Launches . | . . Drone Recoveries . | . . Exploration | -11 -10 ------------- Run | Yrd Mat Turns Passed 1193 | 178 1015 Spaces Moved 577 | 81 496 Core 5 | 5 . Treads 537 | 76 461 Legs 35 | . 35 Wheels . | . . Hover . | . . Flight . | . . Fastest Speed 50 | 50 120 Average Speed 156 | 155 157 Slowest Speed 160 | 160 160 Overloaded Moves . | . . Propulsion Burnouts . | . . Robots Hopped . | . . Cave-ins Triggered . | . . Exploration Rate (%) 38 | 6 70 Regions Visited 1 Branch Regions . Pre-discovered Areas . | . . Known Exits Taken . | . . Unknown Exits Taken 1 | 1 . Scrap Searched . | . . Spaces Dug . | . . Terrain Destroyed . | . . Melee . | . . Projectile . | . . AOE . | . . Terrain Rammed . | . . Walls Destroyed . | . . Machines Disabled . | . . Actions | -11 -10 --------- Run | Yrd Mat Total 714 | 106 608 Wait 27 | 2 25 Move 576 | 80 496 Hop . | . . Pick Up 6 | 5 1 Fast Attach 11 | 7 4 Attach 2 | . 2 Detach . | . . Swap 3 | . 3 Drop 4 | . 4 Fire 84 | 12 72 Melee . | . . Ram . | . . Kick 1 | . 1 Crush . | . . Escape Stasis . | . . Rewire . | . . Trap . | . . Miscellaneous . | . . Route ------- -11/Scrapyard -10/Materials (discovered 2 exits: [*Mat] / [*Min]) History --------- Turn | Location | Event 8 | -11/Scrapyard | Discovered new exit (range 15) 179 | -11/Scrapyard | Entered Materials 303 | -10/Materials | Build established: Mutant 458 | -10/Materials | Discovered new exit (range 11) 587 | -10/Materials | Discovered new exit (range 15) 1096 | -10/Materials | Core integrity fell below 50% 1115 | -10/Materials | Core integrity fell below 20% 1149 | -10/Materials | Lost 6 parts (1p2n2u1w) 1194 | -10/Materials | Destroyed by G-34 Mercenary with Small Laser Last Messages --------------- 01124_ K-01 Serf collects debris. 01127_ R-06 Scavenger collects Aluminum Leg. 01128_ K-01 Serf collects debris. 01130_ System corrupted: Energy discharge (-9). 01132_ K-01 Serf collects debris. 01132_ R-06 Scavenger collects Ion Engine. 01135_ K-01 Serf collects debris. 01135_ Kicked R-06 Scavenger out of the way. 01137_ R-06 Scavenger suffers critical hit (Burn). 01139_ Acquired 16 matter. 01140_ K-01 Serf collects debris. 01147_ R-06 Scavenger collects Lgt. Nuclear Core. 01148_ K-01 Serf collects debris. 01180_ K-01 Serf destroyed. 01184_ Acquired Lgt. Ion Engine. 01186_ G-34 Mercenary suffers critical hit (Burn). 01189_ R-06 Scavenger collects Med. Matter Pod. Map ----- +----------------------------------------------------+ | ??????????????????????????????????#?#????????????? | | ?????????????????????????????????????????????????? | | ?????????????????????????????????????#???????????? | | ????????????????????????###################???#??? | | ???????????????????????? #??????? | | ???????????????????????? #?????#? | | ???????????????????????? #?#?#??? | | ????????????????????????# ##??######+##+#??????? | | ????????????????????????# ## ######## | | ????????????????????????# #?""" """ """ # # "" | | ??????????????????? ????# #?????""" """ # + "" | | ????????????????????????# #???" """ """ + # "" | | ????????????????????????# #?? # + | | ????????????????????????# ############### # | | ?????????????????######## #! ! ###?# # | | ?????????????????# # # ##?## #### | | ?????????????????# # # """ ##?# ### | | ?????????????????# + # """"" #### | | ??????????? ?? ??# # # """"" + T | | ????####???###+#+# #r + [ """"" #### | | ??? ?? # + # """ ##?# ### | | ??? ######## ### [ #??#######?# | | ???? """ #??#???# #?################# ? | | ????? """ #??????# #?# ##### #? "" | | ?????? """ #??????#r#?# # "" | | ?????"T"" ##?????#@#?# T # "" | | ?+ """"" #?#?#??#g### # | | ?# ##?????#g#?# ##### # | | ?# ######## #### ##???## ## %= | | ??????# ^^ %= % #??# #?????# ## ??? | | ??????# ^^% % #??# #?##??# ##????? | | ??????# ! #??# #?#???# ####### | | ??????# #### ##????# ^ | | ??????#+################### #######+######## | | ??????????????????#?#?#??##" # ## | | ??????????????????????#???#"! # T ## | | ?????????????????#???##???#"" < # """ """ #? | | ?????????? ??#???????#??#?#"| # """ """ ## | | ??????????????#???????????#" # """ """ #? | | ??????????????????????????#"""= # ## | | ??????????????????????######## ##########+###### | | ??????????????????????# # # #?#?# # "" | | ???????????????"????? # + %! #?#?# # "T | | ?????????????????? ???# # # ##???# + | | ??????????????????????# !! # ###??#?# # | | ????????????????? ?? # ! # #?#??#?# # " | | ??????????????????????# # #??#?### # "" | | ??????????????????????######## ##?##?## # "" | | ?????????????????????????????# #?#??#?# # "" | | ????????????????????????#??### #?????## # " | +----------------------------------------------------+ Best States ------------- Heat Dissipation 25 Energy Generation 10 Energy Capacity 250 Matter Stores 300 Matter Capacity 300 Sight Range 16 Terrain Scan Range 16 Terrain Scan Density 10 Evasion (%) 55 Recoil Reduction 2 Item Schematics ----------------- None Robot Schematics ------------------ None Fabricated ------------ Nothing Alien Tech Used ----------------- None Achievements -------------- None Challenges ------------ None Game ------ Seed TractorScanLoader Manual? 0 Play Time 00:11:05 Cumulative 26.7 hours Start 2024.05.27 @ 13:27:13 End 2024.05.27 @ 17:55:53 Sessions 2 Manual Loads 0 Difficulty Rogue Special Mode None Game No. 36 Rogue 36 Adventurer 0 Explorer 0 Win Type - Total 0 Types 0/0/0/0/0/0/0/0/0 Lore% 18 Gallery% 15 Achievement% 16 Wizard Run 0 Options --------- Layout 2 ASCII 1 Keyboard 1 Movement Vi Keybinds 0 Fullscreen 2 Font 40/SmallcapsGlow Map View 50x44 Zoom Use 0% Tactical HUD 1 Map Filters NONE Filters NONE Steam 0 RUN: 979269f9-a0a7-4786-864f-89ff0d3c1485